bitfinex/quotes_BTCUSD_20240811
["timestamp","ask_amount","ask_price","bid_price","bid_amount"]
[1723378686916,0.00041515,60512.0,60511.0,1.19753993]
[1723378687128,0.00041515,60512.0,60511.0,1.70371685]
[1723378687405,0.00041515,60512.0,60511.0,1.93507885]
[1723378687621,0.00041515,60512.0,60511.0,2.14379774]
[1723378688039,0.00041515,60512.0,60511.0,2.07166749]
[1723378688263,0.00041515,60512.0,60511.0,2.08157997]
[1723378688464,0.00041515,60512.0,60511.0,2.80557997]
[1723378688899,4e-05,60520.0,60519.0,1.27253693]
[1723378689109,4e-05,60520.0,60519.0,1.71535334]
[1723378689755,0.00773,60530.0,60529.0,0.19745793]
[1723378690011,0.00773,60530.0,60529.0,1.17815485]
[1723378690226,0.00773,60530.0,60529.0,1.70334285]
[1723378690647,0.00773,60530.0,60529.0,1.71534285]
[1723378690759,0.00773,60530.0,60529.0,1.85193149]
[1723378690960,0.00773,60530.0,60529.0,1.86185322]
[1723378691423,0.00773,60530.0,60529.0,2.41185322]
[1723378691624,0.00542418,60534.0,60533.0,1.13456193]
[1723378691833,0.00542418,60534.0,60533.0,1.48266784]
[1723378692027,0.00542418,60534.0,60533.0,1.51576933]
[1723378692234,0.00542418,60534.0,60533.0,1.74704733]
[1723378692957,0.00542418,60534.0,60533.0,2.38964733]
[1723378693179,0.00542418,60534.0,60533.0,1.57836933]
[1723378693603,0.00542418,60534.0,60533.0,1.5661584]
[1723378694047,0.00542418,60534.0,60533.0,1.1816804]
[1723378694266,0.00542418,60534.0,60533.0,1.43347834]
[1723378694480,0.00542418,60534.0,60533.0,1.18798941]
[1723378694702,0.00542418,60534.0,60533.0,1.10638941]
[1723378694917,0.00542418,60534.0,60533.0,1.12038941]
[1723378695176,0.00542418,60534.0,60533.0,1.10638941]
[1723378695391,0.00542418,60534.0,60533.0,1.49407834]
[1723378695600,0.00542418,60534.0,60533.0,1.55536933]
[1723378696009,0.00542418,60534.0,60533.0,1.57836933]
[1723378696225,0.00542418,60534.0,60533.0,2.36764733]
[1723378696450,0.00542418,60534.0,60533.0,2.37964733]
[1723378696660,0.00542418,60534.0,60533.0,2.38164733]
[1723378697082,0.00542418,60534.0,60533.0,2.36764733]
[1723378697284,0.00542418,60534.0,60533.0,2.38164733]
[1723378697486,0.00542418,60534.0,60533.0,2.16236933]
[1723378697706,0.00542418,60534.0,60533.0,2.22299394]
[1723378698060,0.00542418,60534.0,60533.0,2.45427194]
[1723378698263,0.00542418,60534.0,60533.0,2.22299394]
[1723378698933,0.00542418,60534.0,60533.0,2.23134394]
[1723378699275,0.00542418,60534.0,60533.0,2.17071933]
[1723378699471,0.00542418,60534.0,60533.0,2.1705084]
[1723378699678,0.00542418,60534.0,60533.0,2.1685084]
[1723378699881,0.00542418,60534.0,60533.0,2.1475084]
[1723378700100,0.00542418,60534.0,60533.0,1.72065501]
[1723378700337,0.00542418,60534.0,60533.0,1.07920425]
[1723378700570,0.00542418,60534.0,60533.0,1.02038941]
[1723378701008,0.00542418,60534.0,60533.0,1.08798941]
[1723378701221,0.00542418,60534.0,60533.0,1.31926741]
[1723378701428,0.00542418,60534.0,60533.0,1.16080425]
[1723378701650,0.00542418,60534.0,60533.0,1.10638941]
[1723378702074,0.00542418,60534.0,60533.0,1.14338941]
[1723378702288,0.00542418,60534.0,60533.0,0.78911141]
[1723378702289,0.06572418,60534.0,60533.0,0.78911141]
[1723378702508,0.14722418,60534.0,60533.0,0.78911141]
[1723378703116,0.44646517,60534.0,60533.0,0.014]
[1723378703315,0.44646517,60534.0,60508.0,0.01023399]
[1723378703316,0.16158907,60515.0,60514.0,0.115675]
[1723378703517,0.16158907,60515.0,60514.0,0.347026]
[1723378703687,0.16158907,60515.0,60503.0,0.49107874]
[1723378703688,0.00978907,60508.0,60499.0,0.03]
[1723378703869,0.08184646,60502.0,60501.0,1.02813396]
[1723378704094,0.16334646,60502.0,60501.0,0.53705522]
[1723378704311,0.16334646,60502.0,60501.0,0.76845622]
[1723378704940,0.0815,60510.0,60509.0,0.578425]
[1723378705155,0.26750539,60517.0,60514.0,0.231351]
[1723378705156,0.33900539,60517.0,60514.0,0.231351]
[1723378705372,0.00978907,60511.0,60509.0,0.0578425]
[1723378705581,0.10163553,60510.0,60509.0,0.27949992]
[1723378705822,0.10163553,60510.0,60509.0,0.74223992]
[1723378706037,0.10163553,60510.0,60509.0,0.76523992]
[1723378706236,0.0815,60517.0,60515.0,0.115672]
[1723378706237,0.09128907,60517.0,60515.0,0.115672]
[1723378706554,0.01978907,60516.0,60515.0,0.27948692]
[1723378706749,0.00978907,60516.0,60515.0,0.53383392]
[1723378707155,0.01978907,60516.0,60515.0,0.53383392]
[1723378707608,0.01978907,60516.0,60515.0,0.30248692]
[1723378707821,0.01978907,60514.0,60513.0,0.115677]
[1723378708234,0.00978907,60510.0,60509.0,0.231367]
[1723378708391,0.00978907,60510.0,60509.0,0.53386692]
[1723378708392,0.01978907,60510.0,60509.0,0.53386692]
[1723378708792,0.01978907,60510.0,60502.0,0.231394]
[1723378708793,0.01978907,60507.0,60506.0,0.34707]
[1723378709008,0.08008907,60507.0,60506.0,0.36035232]
[1723378709235,0.08008907,60507.0,60506.0,0.82311632]
[1723378709455,0.08184646,60513.0,60506.0,0.24466132]
[1723378709456,0.00978907,60510.0,60506.0,0.24466132]
[1723378709660,0.0815,60518.0,60517.0,0.347008]
[1723378709860,0.0815,60518.0,60517.0,0.74216192]
[1723378710063,0.00978907,60521.0,60520.0,0.57832]
[1723378710281,0.00978907,60521.0,60520.0,0.74213492]
[1723378710465,0.00978907,60521.0,60520.0,0.53380692]
[1723378710680,0.09163553,60521.0,60520.0,0.53380692]
[1723378710907,0.09163553,60521.0,60520.0,0.76513492]
[1723378711117,0.0815,60523.0,60522.0,0.5783]
[1723378711285,0.01,60527.0,60523.0,0.115658]
[1723378711286,0.00978907,60524.0,60523.0,0.115658]
[1723378711486,0.00978907,60524.0,60523.0,0.79778621]
[1723378711691,0.00978907,60524.0,60523.0,0.40265429]
[1723378711890,0.00978907,60524.0,60523.0,0.17133729]
[1723378712091,0.00978907,60524.0,60523.0,0.05567929]
[1723378712324,0.00978907,60524.0,60505.0,0.1]
[1723378712325,0.15158907,60513.0,60512.0,0.347037]
[1723378712892,0.15158907,60513.0,60509.0,0.23137]
[1723378713110,0.01978907,60510.0,60509.0,0.347055]
[1723378713321,0.01978907,60510.0,60509.0,0.578425]
[1723378713639,0.01978907,60510.0,60509.0,0.601425]
[1723378713854,0.01978907,60510.0,60509.0,0.83538242]
[1723378714082,0.01978907,60510.0,60509.0,0.1858275]
[1723378714286,0.00978907,60510.0,60509.0,0.011]
[1723378714498,0.01978907,60510.0,60508.0,0.115686]
[1723378714708,0.01,60509.0,60508.0,0.115686]
[1723378714915,0.001,60510.0,60509.0,0.115685]
[1723378715137,0.00978907,60510.0,60509.0,0.52276892]
[1723378715336,0.00978907,60510.0,60509.0,0.75413892]
[1723378715554,0.02078907,60510.0,60509.0,1.01950892]
[1723378715756,0.001,60510.0,60509.0,1.01950892]
[1723378715962,0.001,60510.0,60509.0,1.25087892]
[1723378716179,0.001,60510.0,60509.0,1.41759302]
[1723378716827,0.00978907,60520.0,60519.0,0.57833]
[1723378717044,0.00978907,60520.0,60519.0,0.84611212]
[1723378717993,0.09128907,60527.0,60526.0,0.115652]
[1723378718238,0.09128907,60527.0,60526.0,0.53377192]
[1723378718239,0.0815,60527.0,60526.0,0.53377192]
[1723378718452,0.0815,60527.0,60526.0,0.81845411]
[1723378718660,0.09128907,60527.0,60526.0,0.05337719]
[1723378718866,0.09128907,60527.0,60526.0,0.115652]
[1723378719074,0.0815,60527.0,60526.0,0.346957]
[1723378719279,0.09163553,60531.0,60530.0,0.23129]
[1723378719489,0.09163553,60531.0,60530.0,0.76503992]
[1723378719700,0.09163553,60531.0,60530.0,0.84487429]
[1723378719912,0.09163553,60531.0,60530.0,1.07616429]
[1723378720124,0.09163553,60531.0,60530.0,0.65805937]
[1723378720774,0.08384646,60531.0,60530.0,0.65805937]
[1723378720956,0.08384646,60531.0,60530.0,0.84487429]
[1723378721538,0.09363553,60531.0,60530.0,0.84487429]
[1723378722674,0.08384646,60531.0,60530.0,0.84487429]
[1723378722880,0.002,60531.0,60530.0,0.84487429]
[1723378723081,0.002,60531.0,60530.0,1.07616429]
[1723378723487,0.002,60531.0,60530.0,1.40745429]
[1723378724272,0.00542418,60534.0,60533.0,0.809473]
[1723378724451,0.09622418,60534.0,60533.0,0.77057469]
[1723378724649,0.09622418,60534.0,60533.0,0.79357469]
[1723378724994,0.00542418,60534.0,60533.0,0.79357469]
[1723378725370,0.00542418,60534.0,60533.0,1.02485269]
[1723378725995,0.00542418,60534.0,60533.0,1.12485269]
[1723378726793,0.00542418,60534.0,60533.0,1.35613069]
[1723378726998,0.00542418,60534.0,60533.0,1.42554162]
[1723378727209,0.00542418,60534.0,60533.0,2.02354162]
[1723378727433,0.00542418,60534.0,60533.0,1.42533069]
[1723378727638,0.00542418,60534.0,60533.0,1.74410869]
[1723378727859,0.00542418,60534.0,60533.0,1.81536557]
[1723378728066,0.00542418,60534.0,60533.0,1.82515464]
[1723378728279,0.00642418,60534.0,60533.0,1.8490562]
[1723378728550,0.00542418,60534.0,60533.0,1.8250562]
[1723378728783,0.00542418,60534.0,60533.0,1.82526713]
[1723378729735,0.00542418,60534.0,60533.0,2.43526713]
[1723378729962,0.00642418,60534.0,60533.0,2.44926713]
[1723378730433,0.00542418,60534.0,60533.0,2.43526713]
[1723378730668,0.00642418,60534.0,60533.0,2.44985114]
[1723378730903,0.00542418,60534.0,60533.0,2.43585114]
[1723378731370,0.00642418,60534.0,60533.0,2.44985114]
[1723378731571,0.00642418,60534.0,60533.0,2.43985114]
[1723378731776,0.00642418,60534.0,60533.0,2.44029973]
[1723378731981,0.00642418,60534.0,60533.0,2.45229973]
[1723378732192,0.00642418,60534.0,60533.0,2.44029973]
[1723378732597,0.00642418,60534.0,60533.0,2.2208108]
[1723378732802,0.00642418,60534.0,60533.0,2.14673225]
[1723378733090,0.00642418,60534.0,60533.0,2.13673225]
[1723378733522,0.00542418,60534.0,60533.0,2.35401025]
[1723378733702,0.00542418,60534.0,60533.0,2.38001025]
[1723378733902,0.00642418,60534.0,60533.0,2.38001025]
[1723378734107,0.00642418,60534.0,60533.0,2.43808192]
[1723378734108,0.00542418,60534.0,60533.0,2.43808192]
[1723378734357,0.00542418,60534.0,60533.0,2.42608192]
[1723378734562,0.00642418,60534.0,60533.0,2.44008192]
[1723378734780,0.00642418,60534.0,60533.0,2.45208192]
[1723378735456,0.00642418,60534.0,60533.0,1.85208192]
[1723378735665,0.00642418,60534.0,60533.0,2.40187099]
[1723378736118,0.00642418,60534.0,60533.0,1.86703225]
[1723378736446,0.00642418,60534.0,60533.0,1.86903225]
[1723378736653,0.00542418,60534.0,60533.0,1.85503225]
[1723378736911,0.00642418,60534.0,60533.0,1.86903225]
[1723378737117,0.00542418,60534.0,60533.0,1.85503225]
[1723378737332,0.00542418,60534.0,60533.0,1.61175425]
[1723378737537,0.00642418,60534.0,60533.0,1.11585269]
[1723378738477,0.00542418,60534.0,60533.0,1.10185269]
[1723378738679,0.00642418,60534.0,60533.0,1.11585269]
[1723378739695,0.00642418,60534.0,60533.0,1.45763069]
[1723378739915,0.00542418,60534.0,60533.0,1.44363069]
[1723378740126,0.00542418,60534.0,60533.0,1.59465733]
[1723378740331,0.00642418,60534.0,60533.0,1.60865733]
[1723378740738,0.00542418,60534.0,60533.0,1.36613069]
[1723378740950,0.00642418,60534.0,60533.0,2.00190588]
[1723378741234,0.00642418,60534.0,60533.0,2.08940588]
[1723378741450,0.00542418,60534.0,60533.0,2.34855127]
[1723378741648,0.00642418,60534.0,60533.0,2.36255127]
[1723378741870,0.00542418,60534.0,60533.0,2.11727327]
[1723378742079,0.00542418,60534.0,60533.0,2.08539899]
[1723378742710,0.00542418,60534.0,60533.0,1.99789899]
[1723378743324,0.00642418,60534.0,60533.0,2.02368799]
[1723378744159,0.00542418,60534.0,60533.0,2.05172072]
[1723378744366,0.00642418,60534.0,60533.0,2.06572072]
[1723378744797,0.00542418,60534.0,60533.0,2.05172072]
[1723378745005,0.00642418,60534.0,60533.0,2.06572072]
[1723378745226,0.00642418,60534.0,60533.0,2.28520965]
[1723378745431,0.00642418,60534.0,60533.0,2.61461611]
[1723378745638,0.00642418,60534.0,60533.0,2.62640518]
[1723378745837,0.00642418,60534.0,60533.0,2.38312718]
[1723378745964,0.00642418,60534.0,60533.0,2.39512718]
[1723378746172,0.00642418,60534.0,60533.0,2.38133811]
[1723378746381,0.00642418,60534.0,60533.0,2.61261611]
[1723378746382,0.00542418,60534.0,60533.0,2.61261611]
[1723378746582,0.00642418,60534.0,60533.0,2.62661611]
[1723378746806,0.00642418,60534.0,60533.0,2.39512718]
[1723378747012,0.00542418,60534.0,60533.0,2.30935888]
[1723378747209,0.00642418,60534.0,60533.0,2.39531423]
[1723378747634,0.00542418,60534.0,60533.0,2.44139995]
[1723378747839,0.00642418,60534.0,60533.0,2.62680595]
[1723378748037,0.00542418,60534.0,60533.0,2.61280595]
[1723378748241,0.00542418,60534.0,60533.0,2.38131702]
[1723378748865,0.00542418,60534.0,60533.0,2.38152795]
[1723378749093,0.00542418,60534.0,60533.0,2.61280595]
[1723378749607,0.00542418,60534.0,60533.0,2.61259502]
[1723378750095,0.00642418,60534.0,60533.0,2.62659502]
[1723378750326,0.00542418,60534.0,60533.0,2.38131702]
[1723378750791,0.00542418,60534.0,60533.0,2.23562402]
[1723378750792,0.00642418,60534.0,60533.0,2.23562402]
[1723378750990,0.00642418,60534.0,60533.0,2.23762402]
[1723378751208,0.00542418,60534.0,60533.0,2.22362402]
[1723378751421,0.00642418,60534.0,60533.0,2.23763165]
[1723378751965,0.00542418,60534.0,60533.0,2.45490965]
[1723378752791,0.00542418,60534.0,60533.0,2.22363165]
[1723378753130,0.00542418,60534.0,60533.0,2.22454575]
[1723378753341,0.00642418,60534.0,60533.0,2.23854575]
[1723378753542,0.00542418,60534.0,60533.0,2.22454575]
[1723378753747,0.00542418,60534.0,60533.0,2.22254575]
[1723378753949,0.00642418,60534.0,60533.0,2.32654575]
[1723378754148,0.00642418,60534.0,60533.0,2.30355391]
[1723378754443,0.00642418,60534.0,60533.0,2.01783379]
[1723378754642,0.00642418,60534.0,60533.0,2.1318159]
[1723378754869,0.00642418,60534.0,60533.0,2.1218159]
[1723378755068,0.00642418,60534.0,60533.0,2.38403492]
[1723378755278,0.00642418,60534.0,60533.0,2.39603492]
[1723378755638,0.00642418,60534.0,60533.0,2.32623492]
[1723378756707,0.00642418,60534.0,60533.0,2.31623492]
[1723378757119,0.00642418,60534.0,60533.0,2.32623492]
[1723378757925,0.00642418,60534.0,60533.0,2.31623492]
[1723378758136,0.00642418,60534.0,60533.0,2.03083379]
[1723378758271,0.00642418,60534.0,60533.0,2.31654421]
[1723378759637,0.00642418,60534.0,60533.0,2.30654421]
[1723378760839,0.00642418,60534.0,60533.0,2.30654246]
[1723378761031,0.00642418,60534.0,60533.0,2.39734246]
[1723378761664,0.00642418,60534.0,60533.0,2.35581814]
[1723378761869,0.00642418,60534.0,60533.0,2.39793968]
[1723378762292,0.00642418,60534.0,60533.0,2.3071397]
[1723378762497,0.00642418,60534.0,60533.0,2.3171397]
[1723378762707,0.00642418,60534.0,60533.0,2.5384177]
[1723378763111,0.00642418,60534.0,60533.0,2.3071397]
[1723378763315,0.00642418,60534.0,60533.0,2.5384177]
[1723378763734,0.00642418,60534.0,60533.0,2.63713214]
[1723378764143,0.00835,60540.0,60539.0,1.040647]
[1723378764144,0.00225766,60540.0,60539.0,1.040647]
[1723378764356,0.0902,60546.0,60545.0,0.57808]
[1723378764566,0.0902,60546.0,60545.0,1.34216944]
[1723378765188,0.09998907,60546.0,60545.0,1.22735892]
[1723378765388,0.10998907,60546.0,60545.0,1.30996683]
[1723378765592,0.09998907,60546.0,60545.0,1.30996683]
[1723378765794,0.09998907,60546.0,60545.0,1.3385316]
[1723378766200,0.17868907,60546.0,60545.0,1.1072996]
[1723378766411,0.17868907,60546.0,60545.0,0.44788784]
[1723378766630,0.17868907,60546.0,60545.0,0.78245969]
[1723378766839,0.1589,60546.0,60545.0,0.85397243]
[1723378767042,0.1589,60546.0,60545.0,1.08520443]
[1723378767888,0.159731,60546.0,60545.0,1.10820443]
[1723378768091,0.159731,60546.0,60545.0,1.09620443]
[1723378768497,0.159731,60546.0,60545.0,1.10220443]
[1723378769325,0.159731,60546.0,60545.0,1.14424239]
[1723378769722,0.159731,60546.0,60545.0,1.13824239]
[1723378769942,0.160731,60546.0,60545.0,1.14724239]
[1723378770369,0.160731,60546.0,60545.0,1.14815282]
[1723378770582,0.18052007,60546.0,60545.0,1.14815282]
[1723378770785,0.18052007,60546.0,60545.0,1.10611486]
[1723378771018,0.18052007,60546.0,60545.0,1.08311486]
[1723378771711,0.17052007,60546.0,60545.0,0.85188286]
[1723378771983,0.17052007,60546.0,60545.0,0.85094064]
[1723378771984,0.17552007,60546.0,60545.0,0.85094064]
[1723378772232,0.17552007,60546.0,60545.0,0.85093464]
[1723378772467,0.17552007,60546.0,60545.0,1.10516664]
[1723378772728,0.17552007,60546.0,60545.0,0.87393323]
[1723378773162,0.16552007,60546.0,60545.0,0.87393323]
[1723378773379,0.16552007,60546.0,60545.0,0.80245969]
[1723378773380,0.17552007,60546.0,60545.0,0.80245969]
[1723378774436,0.17552007,60546.0,60545.0,0.38441277]
[1723378774650,0.23582984,60546.0,60545.0,0.03756477]
[1723378774856,0.27435959,60546.0,60545.0,0.009]
[1723378775317,0.00978907,60534.0,60533.0,0.0009141]
[1723378775517,0.17868907,60534.0,60533.0,0.0009141]
[1723378775697,0.23898559,60534.0,60533.0,0.0009141]
[1723378776265,0.17868907,60534.0,60533.0,0.0009141]
[1723378776526,0.17868907,60534.0,60533.0,0.03680045]
[1723378776729,0.18168907,60534.0,60533.0,0.03680045]
[1723378777218,0.17868907,60534.0,60533.0,0.03680045]
[1723378777419,0.17868907,60534.0,60533.0,0.0009141]
[1723378777420,0.75987407,60534.0,60533.0,0.0009141]
[1723378777568,0.84809078,60534.0,60533.0,0.0009141]
[1723378777788,0.61381678,60534.0,60533.0,0.0009141]
[1723378777976,0.23900159,60534.0,60533.0,0.0009141]
[1723378778178,0.35789384,60534.0,60533.0,0.0009141]
[1723378778391,0.58916784,60534.0,60533.0,0.0009141]
[1723378778931,0.35789384,60534.0,60533.0,0.0009141]
[1723378779190,0.35745329,60534.0,60533.0,0.0009141]
[1723378779401,0.18168907,60534.0,60533.0,0.0009141]
[1723378779609,0.17868907,60534.0,60533.0,0.24393892]
[1723378779815,0.18268907,60534.0,60533.0,0.35957792]
[1723378780236,0.17868907,60534.0,60533.0,0.35957792]
[1723378780438,0.17168907,60534.0,60533.0,0.35957792]
[1723378780648,0.16868907,60534.0,60533.0,0.77767084]
[1723378781183,0.17868907,60534.0,60533.0,0.77767084]
[1723378781388,0.17868907,60534.0,60533.0,0.54639284]
[1723378781807,0.17868907,60534.0,60533.0,0.31511484]
[1723378782018,0.17868907,60534.0,60532.0,0.0009141]
[1723378782019,0.75688407,60533.0,60532.0,0.0009141]
[1723378782215,0.00978907,60510.0,60509.0,0.1165991]
[1723378782415,0.10508907,60510.0,60509.0,0.74315402]
[1723378783192,0.10508907,60510.0,60509.0,0.75301178]
[1723378784005,0.10608907,60510.0,60509.0,0.76001178]
[1723378784187,0.16678907,60510.0,60509.0,0.76001178]
[1723378784418,0.02078907,60510.0,60509.0,0.76001178]
[1723378784616,0.02078907,60510.0,60509.0,0.99138178]
[1723378784816,0.02078907,60510.0,60509.0,0.76001178]
[1723378785051,0.10608907,60510.0,60509.0,0.76001178]
[1723378785225,0.10608907,60510.0,60509.0,0.75301178]
[1723378785226,0.10508907,60510.0,60509.0,0.75301178]
[1723378785500,0.10508907,60510.0,60509.0,0.77601178]
[1723378785715,0.10608907,60510.0,60509.0,0.78301178]
[1723378785941,0.10508907,60510.0,60509.0,0.77601178]
[1723378786428,0.10608907,60510.0,60509.0,0.78301178]
[1723378786706,0.10508907,60510.0,60509.0,0.76615402]
[1723378786927,0.10508907,60510.0,60509.0,0.3549691]
[1723378786928,0.10608907,60510.0,60509.0,0.3549691]
[1723378787156,0.17578907,60510.0,60509.0,0.0009141]
[1723378787869,0.17578907,60510.0,60509.0,0.14292042]
[1723378788082,0.09508907,60510.0,60509.0,0.76947534]
[1723378788302,0.09508907,60510.0,60509.0,1.00084534]
[1723378788523,0.09608907,60510.0,60509.0,1.03084534]
[1723378788754,0.0853,60514.0,60513.0,0.115677]
[1723378788979,0.09508907,60514.0,60513.0,0.61435973]
[1723378789683,0.25750539,60522.0,60515.0,0.578367]
[1723378789684,0.01978907,60516.0,60515.0,0.578367]
[1723378789926,0.00978907,60516.0,60515.0,0.97352892]
[1723378790207,0.00978907,60516.0,60515.0,1.06895533]
[1723378790476,0.00978907,60516.0,60515.0,0.83760833]
[1723378790921,0.0707,60521.0,60516.0,0.231343]
[1723378791175,0.0707,60521.0,60520.0,0.809648]
[1723378791176,0.00978907,60521.0,60520.0,0.809648]
[1723378791428,0.0707,60527.0,60522.0,0.34698]
[1723378791429,0.00978907,60523.0,60522.0,0.34698]
[1723378791701,0.00978907,60523.0,60522.0,0.97343492]
[1723378791933,0.00978907,60523.0,60522.0,0.99643492]
[1723378792180,0.00978907,60523.0,60522.0,0.30247492]
[1723378792386,0.00978907,60523.0,60522.0,0.59810219]
[1723378792627,0.00978907,60523.0,60522.0,0.82942219]
[1723378793113,0.01978907,60523.0,60522.0,1.06074219]
[1723378793347,0.00978907,60523.0,60522.0,1.07074219]
[1723378793580,0.00978907,60523.0,60522.0,1.08074243]
[1723378793822,0.00978907,60523.0,60522.0,1.08274243]
[1723378794071,0.00978907,60525.0,60524.0,0.588282]
[1723378794296,0.00978907,60525.0,60524.0,0.80918879]
[1723378794552,0.01978907,60525.0,60524.0,0.80918879]
[1723378794803,0.01978907,60525.0,60524.0,1.05050179]
[1723378795023,0.01978907,60525.0,60524.0,1.04050179]
[1723378795499,0.01978907,60525.0,60524.0,0.80918879]
[1723378795739,0.02078907,60525.0,60524.0,0.83118879]
[1723378795954,0.00978907,60526.0,60525.0,0.356963]
[1723378796186,0.00978907,60526.0,60525.0,0.81639419]
[1723378796414,0.00978907,60526.0,60525.0,1.07070319]
[1723378796648,0.01978907,60526.0,60525.0,1.07070319]
[1723378797682,0.01,60526.0,60525.0,1.07070319]
[1723378797913,0.01978907,60526.0,60525.0,1.07070319]
[1723378798609,0.02078907,60526.0,60525.0,1.08270319]
[1723378798848,0.01978907,60526.0,60525.0,1.07070319]
[1723378799495,0.01978907,60526.0,60525.0,0.83939419]
[1723378799920,0.01978907,60526.0,60525.0,0.82939419]
[1723378800104,0.10508907,60526.0,60525.0,0.82939419]
[1723378800323,0.01978907,60523.0,60522.0,0.12566024]
[1723378800507,0.01978907,60523.0,60509.0,0.0009141]
[1723378800508,0.01,60517.0,60516.0,0.115671]
[1723378800692,0.0953,60517.0,60516.0,0.51082892]
[1723378800857,0.0953,60517.0,60516.0,0.75230661]
[1723378801064,0.17578907,60517.0,60516.0,0.12580569]
[1723378801264,0.17578907,60517.0,60516.0,0.115671]
[1723378801479,0.17578907,60517.0,60513.0,0.231355]
[1723378801680,0.00978907,60510.0,60509.0,0.0009141]
[1723378801880,0.09508907,60510.0,60509.0,0.74315402]
[1723378802324,0.09508907,60510.0,60509.0,0.97452402]
[1723378802998,0.09508907,60510.0,60509.0,0.51478402]
[1723378803212,0.09508907,60510.0,60509.0,0.51178402]
[1723378803426,0.10508907,60510.0,60509.0,0.58649243]
[1723378803632,0.09608907,60510.0,60509.0,0.82586243]
[1723378804057,0.09608907,60510.0,60509.0,1.05723243]
[1723378804463,0.10608907,60510.0,60509.0,1.05723243]
[1723378804713,0.10608907,60510.0,60509.0,0.84886243]
[1723378804915,0.09608907,60510.0,60509.0,0.84886243]
[1723378805756,0.01078907,60510.0,60509.0,1.08023243]
[1723378805960,0.01078907,60510.0,60509.0,1.32360243]
[1723378805961,0.001,60510.0,60509.0,1.32360243]
[1723378806161,0.00978907,60520.0,60519.0,0.01]
[1723378806478,0.01978907,60523.0,60522.0,0.34698]
[1723378806680,0.01978907,60523.0,60522.0,0.75211492]
[1723378806681,0.00978907,60523.0,60522.0,0.75211492]
[1723378806842,0.01978907,60523.0,60522.0,0.77511492]
[1723378807044,0.01978907,60523.0,60522.0,0.76511492]
[1723378807259,0.11078907,60523.0,60522.0,0.34698]
[1723378807469,0.11678907,60523.0,60522.0,0.76842565]
[1723378807694,0.11678907,60523.0,60522.0,0.79142565]
[1723378808396,0.02578907,60523.0,60522.0,0.79142565]
[1723378808602,0.02578907,60523.0,60522.0,1.02274565]
[1723378809432,0.01978907,60523.0,60522.0,1.02174565]
[1723378809833,0.01978907,60523.0,60522.0,1.03174565]
[1723378809834,0.01078907,60523.0,60522.0,1.03174565]
[1723378810035,0.00978907,60523.0,60522.0,1.03374565]
[1723378810237,0.00978907,60523.0,60522.0,1.12174565]
[1723378810437,0.00978907,60523.0,60522.0,1.12974565]
[1723378810686,0.00978907,60523.0,60522.0,1.02174565]
[1723378810687,0.01978907,60523.0,60522.0,1.02174565]
[1723378810894,0.01978907,60523.0,60522.0,1.03174565]
[1723378811104,0.01978907,60523.0,60522.0,1.03574565]
[1723378811499,0.01978907,60523.0,60522.0,1.02174565]
[1723378811706,0.01978907,60523.0,60522.0,1.03174565]
[1723378812340,0.01978907,60523.0,60522.0,1.02174565]
[1723378812785,0.01978907,60523.0,60522.0,1.03574565]
[1723378812991,0.02078907,60523.0,60522.0,1.03574565]
[1723378813189,0.02078907,60523.0,60522.0,1.02174565]
[1723378813190,0.01978907,60523.0,60522.0,1.02174565]
[1723378813514,0.02078907,60523.0,60522.0,1.03574565]
[1723378813923,0.01978907,60523.0,60522.0,1.02174565]
[1723378814130,0.02078907,60523.0,60522.0,1.03574565]
[1723378814867,0.17908907,60523.0,60522.0,0.014]
[1723378815078,0.17908907,60523.0,60522.0,0.52479492]
[1723378815276,0.11178907,60523.0,60522.0,0.98743492]
[1723378816391,0.11078907,60523.0,60522.0,0.99643492]
[1723378816551,0.01978907,60523.0,60522.0,0.99643492]
[1723378816752,0.02078907,60523.0,60522.0,1.00843492]
[1723378816959,0.01978907,60523.0,60522.0,0.99643492]
[1723378817456,0.02078907,60523.0,60522.0,1.01043492]
[1723378817992,0.01978907,60523.0,60522.0,0.99643492]
[1723378818184,0.02078907,60523.0,60522.0,1.00943492]
[1723378818499,0.01978907,60523.0,60522.0,0.99643492]
[1723378819712,0.02078907,60523.0,60522.0,1.01043492]
[1723378819917,0.01978907,60523.0,60522.0,0.99643492]
[1723378820325,0.02078907,60523.0,60522.0,1.01043492]
[1723378820561,0.00978907,60523.0,60522.0,1.06812041]
[1723378820766,0.01978907,60523.0,60522.0,0.99643492]
[1723378820966,0.02078907,60523.0,60522.0,1.08260299]
[1723378821167,0.02078907,60523.0,60522.0,1.06860299]
[1723378821377,0.01978907,60523.0,60522.0,1.06860299]
[1723378821692,0.02078907,60523.0,60522.0,1.08260299]
[1723378822147,0.02078907,60523.0,60522.0,1.01043492]
[1723378822305,0.02078907,60523.0,60522.0,1.08258133]
[1723378822517,0.02078907,60523.0,60522.0,1.01043492]
[1723378824079,0.02078907,60523.0,60522.0,0.77911492]
[1723378825663,0.01078907,60523.0,60522.0,1.01043492]
[1723378825871,0.01078907,60523.0,60522.0,1.08272505]
[1723378826434,0.01078907,60523.0,60522.0,0.85140505]
[1723378827240,0.02078907,60523.0,60522.0,0.85140505]
[1723378827822,0.02162007,60523.0,60522.0,0.85140505]
[1723378828351,0.02162007,60523.0,60522.0,1.08272505]
[1723378828352,0.01162007,60523.0,60522.0,1.08272505]
[1723378828931,0.02162007,60523.0,60522.0,1.08272505]
[1723378829609,0.02162007,60523.0,60522.0,0.77911492]
[1723378829811,0.02162007,60523.0,60522.0,0.20081492]
[1723378831173,0.52609507,60523.0,60522.0,0.014]
[1723378831348,0.77741207,60523.0,60522.0,0.014]
[1723378831555,0.82742973,60523.0,60522.0,0.014]
[1723378831756,1.24492056,60523.0,60522.0,0.014]
[1723378831964,1.35594782,60523.0,60522.0,0.014]
[1723378832134,0.01978907,60517.0,60516.0,0.0009141]
[1723378832379,0.01978907,60517.0,60510.0,0.0009141]
[1723378832380,0.29297007,60511.0,60510.0,0.0009141]
[1723378832538,0.58765942,60511.0,60510.0,0.0009141]
[1723378832764,0.68765942,60511.0,60510.0,0.0009141]
[1723378832969,0.91902142,60511.0,60510.0,0.0009141]
[1723378833953,0.92002142,60511.0,60510.0,0.0069141]
[1723378834374,0.91902142,60511.0,60510.0,0.0009141]
[1723378834532,0.91900989,60511.0,60510.0,0.0019141]
[1723378835627,0.85900376,60511.0,60510.0,0.0019141]
[1723378835827,0.9289337,60511.0,60510.0,0.0019141]
[1723378836037,1.30755923,60511.0,60510.0,0.0019141]
[1723378836294,1.1602957,60511.0,60510.0,0.0019141]
[1723378837026,1.1702957,60511.0,60510.0,0.0019141]
[1723378837471,1.1702957,60511.0,60510.0,0.0009141]
[1723378837681,0.9419337,60511.0,60510.0,0.0009141]
[1723378838108,1.1832957,60511.0,60510.0,0.0009141]
[1723378838318,0.9419337,60511.0,60510.0,0.0009141]
[1723378838550,1.11336576,60511.0,60510.0,0.0009141]
[1723378838775,1.17325447,60511.0,60510.0,0.0009141]
[1723378839200,0.91889247,60511.0,60510.0,0.0009141]